bitfinex/quotes_SOLUSD_20240729
["timestamp","ask_amount","ask_price","bid_price","bid_amount"]
[1722272239805,50.3971,185.29,185.18,20.0]
[1722272240108,70.24,185.29,185.2,40.0]
[1722272240304,1.34974895,185.28,185.25,5.398]
[1722272240480,71.58961211,185.29,185.2,40.0]
[1722272240677,71.58961211,185.29,185.26,5.3977]
[1722272240878,70.24,185.29,185.25,5.398]
[1722272241088,70.24,185.29,185.2,20.0]
[1722272241287,75.637,185.29,185.24,5.3983]
[1722272241484,75.637,185.29,185.23,5.3986]
[1722272242095,45.0,185.29,185.2,40.0]
[1722272242399,15.7762,185.3,185.29,5.3969]
[1722272243082,15.7762,185.3,185.27,5.3972]
[1722272243277,15.7762,185.3,185.28,5.3971]
[1722272244084,15.7762,185.3,185.29,5.3969]
[1722272244381,16.6567,185.34,185.31,5.3961]
[1722272244582,16.6567,185.34,185.28,40.0]
[1722272244889,16.6567,185.34,185.3,5.3965]
[1722272245087,16.6567,185.34,185.28,40.0]
[1722272245678,16.6567,185.34,185.28,20.0]
[1722272246503,16.6567,185.34,185.25,20.0]
[1722272246815,46.34937687,185.33,185.25,20.0]
[1722272247284,50.3958,185.33,185.23,20.0]
[1722272247486,5.3961,185.32,185.24,20.0]
[1722272247704,6.74559673,185.32,185.24,20.0]
[1722272248010,75.6358,185.33,185.24,20.0]
[1722272248308,70.24,185.33,185.24,40.0]
[1722272248685,45.0,185.33,185.26,20.0]
[1722272248885,16.6567,185.34,185.28,20.0]
[1722272249090,16.6567,185.34,185.28,40.0]
[1722272249587,16.6567,185.34,185.28,20.0]
[1722272249987,16.6567,185.34,185.26,40.0]
[1722272250997,16.6567,185.34,185.26,20.0]
[1722272251204,16.6567,185.34,185.26,40.0]
[1722272251403,16.6567,185.34,185.28,20.0]
[1722272251700,16.6567,185.34,185.26,40.0]
[1722272252082,22.0522,185.34,185.26,40.0]
[1722272252286,22.0522,185.34,185.26,20.0]
[1722272252287,16.6567,185.34,185.26,20.0]
[1722272252592,41.8767,185.34,185.24,60.0]
[1722272252791,46.34939114,185.33,185.24,40.0]
[1722272253802,45.0,185.33,185.24,40.0]
[1722272255396,45.0,185.33,185.22,20.0]
[1722272255707,25.22,185.31,185.22,20.0]
[1722272255910,21.5771,185.29,185.18,20.0]
[1722272256083,46.34974798,185.28,185.18,20.0]
[1722272256288,25.22,185.28,185.2,20.0]
[1722272256607,26.56962734,185.28,185.18,40.0]
[1722272256806,26.56962734,185.28,185.2,20.0]
[1722272257107,16.1802,185.29,185.22,40.0]
[1722272258909,15.1531,185.37,185.29,20.0]
[1722272259314,15.1531,185.37,185.3,40.0]
[1722272260216,15.1531,185.37,185.28,40.0]
[1722272260707,30.6154,185.35,185.24,20.0]
[1722272260884,31.4902,185.32,185.21,20.0]
[1722272261088,32.83977315,185.32,185.21,20.0]
[1722272261287,5.3963,185.31,185.21,20.0]
[1722272261504,25.22,185.29,185.19,20.0]
[1722272261688,1.34968547,185.28,185.19,20.0]
[1722272262311,16.652,185.27,185.19,20.0]
[1722272262811,71.56986719,185.26,185.17,20.0]
[1722272262999,71.56986719,185.26,185.16,5.60232169]
[1722272263193,6.1,185.24,185.15,20.0]
[1722272263397,46.35011133,185.23,185.15,20.0]
[1722272263710,15.4218,185.22,185.12,5.59323717]
[1722272263894,1.35026273,185.21,185.12,5.59323717]
[1722272264097,1.35026944,185.2,185.11,40.0]
[1722272264399,1.35026944,185.2,185.11,20.0]
[1722272264817,1.35026944,185.2,185.09,20.0]
[1722272264818,25.22,185.17,185.08,0.7694388]
[1722272265003,52.72233378,185.16,185.08,0.7694388]
[1722272268407,47.58740632,185.16,185.08,0.7694388]
[1722272268612,2.58740632,185.16,185.08,0.7694388]
[1722272269020,15.8257,185.19,185.11,40.0]
[1722272269318,5.3987,185.23,185.13,20.0]
[1722272269504,5.3987,185.23,185.11,20.0]
[1722272269702,5.3984,185.24,185.13,20.0]
[1722272269916,1.3501828,185.23,185.13,20.0]
[1722272270221,1.3501828,185.25,185.13,20.0]
[1722272270425,1.3501828,185.25,185.14,20.0]
[1722272270823,15.1286,185.19,185.08,20.7694388]
[1722272271009,50.4003,185.18,185.08,0.7694388]
[1722272271203,1.35063308,185.17,185.08,0.7694388]
[1722272271520,6.75103308,185.17,185.08,0.7694388]
[1722272271723,45.0,185.16,185.08,0.7694388]
[1722272271902,1.35063308,185.17,185.08,0.7694388]
[1722272272113,1.35066422,185.15,185.08,0.7694388]
[1722272272337,5.4007,185.16,185.08,0.7694388]
[1722272272623,45.0,185.15,185.08,0.7694388]
[1722272272828,45.0,185.16,185.08,0.7694388]
[1722272273028,46.35066562,185.17,185.08,0.7694388]
[1722272273412,45.0,185.18,185.09,20.0]
[1722272273806,15.1286,185.19,185.11,20.0]
[1722272274018,15.1286,185.19,185.09,20.0]
[1722272274722,15.1286,185.19,185.11,20.0]
[1722272274928,15.1286,185.19,185.13,20.0]
[1722272275130,15.1286,185.19,185.11,20.0]
[1722272275331,1.35030254,185.18,185.11,20.0]
[1722272275510,15.1286,185.19,185.11,20.0]
[1722272275710,15.1286,185.19,185.13,20.0]
[1722272276237,15.1286,185.19,185.11,20.0]
[1722272276734,20.5285,185.19,185.09,20.0]
[1722272276940,20.5285,185.19,185.12,20.0]
[1722272277110,15.1286,185.19,185.12,20.0]
[1722272278626,15.1286,185.19,185.1,40.0]
[1722272280129,15.1286,185.19,185.14,20.0]
[1722272280334,15.1286,185.19,185.12,40.0]
[1722272280544,5.4004,185.18,185.1,40.0]
[1722272280711,20.5285,185.19,185.1,40.0]
[1722272281130,5.4001,185.18,185.1,20.0]
[1722272281333,6.75043633,185.18,185.1,20.0]
[1722272281724,20.5285,185.19,185.1,20.0]
[1722272281916,6.75065005,185.18,185.08,20.7694388]
[1722272282414,6.75065005,185.18,185.1,20.0]
[1722272282623,20.5285,185.19,185.1,20.0]
[1722272283139,1.35040041,185.18,185.08,20.7694388]
[1722272283317,6.75060041,185.18,185.08,20.7694388]
[1722272283924,15.1286,185.19,185.08,20.7694388]
[1722272284212,20.5287,185.19,185.08,20.7694388]
[1722272284414,1.35041624,185.18,185.1,20.0]
[1722272284628,1.35041624,185.18,185.08,20.7694388]
[1722272285333,6.75051624,185.18,185.08,20.7694388]
[1722272285810,1.35041624,185.18,185.1,20.0]
[1722272286011,46.35041624,185.18,185.1,20.0]
[1722272286234,15.1286,185.19,185.1,20.0]
[1722272286740,1.35041671,185.18,185.08,20.7694388]
[1722272286928,16.47902064,185.19,185.08,20.7694388]
[1722272287109,16.47902064,185.19,185.11,20.0]
[1722272287314,40.3886,185.19,185.11,20.0]
[1722272288024,41.73901014,185.19,185.11,20.0]
[1722272288435,40.3886,185.19,185.11,20.0]
[1722272289108,15.1286,185.19,185.11,20.0]
[1722272289308,15.3946,185.23,185.14,20.0]
[1722272289744,16.74463365,185.23,185.14,20.0]
[1722272289943,5.399,185.22,185.14,20.0]
[1722272290111,15.3946,185.23,185.16,20.0]
[1722272290437,22.14332142,185.23,185.14,20.0]
[1722272290633,16.74462142,185.23,185.14,20.0]
[1722272290940,5.399,185.22,185.14,20.0]
[1722272291126,22.14332142,185.23,185.14,20.0]
[1722272291328,22.14342503,185.23,185.14,20.0]
[1722272291738,22.14342796,185.23,185.16,20.0]
[1722272291937,5.3991,185.22,185.12,46.0249]
[1722272292439,1.35012986,185.21,185.12,46.0249]
[1722272292838,1.35016806,185.2,185.12,46.0249]
[1722272293031,15.3946,185.23,185.19,20.0]
[1722272293236,15.3946,185.23,185.17,20.0]
[1722272294121,15.3946,185.23,185.15,20.0]
[1722272294321,20.7934,185.23,185.14,0.17]
[1722272294540,6.74915941,185.22,185.13,20.0]
[1722272294845,15.3946,185.23,185.15,20.0]
[1722272295319,16.74451936,185.23,185.17,20.0]
[1722272295518,15.3946,185.23,185.15,20.0]
[1722272296341,15.3946,185.23,185.14,0.17]
[1722272296540,15.3946,185.23,185.13,20.0]
[1722272296841,25.26,185.22,185.13,20.0]
[1722272297225,30.6589,185.22,185.13,20.0]
[1722272297427,25.26,185.22,185.13,20.0]
[1722272297745,1.35010312,185.21,185.15,20.0]
[1722272297937,5.3993,185.21,185.12,6.1949]
[1722272298136,32.00920113,185.22,185.13,20.0]
[1722272298529,5.3993,185.21,185.13,20.0]
[1722272298835,30.659,185.22,185.13,20.0]
[1722272299231,5.3994,185.21,185.12,6.1949]
[1722272299546,5.3999,185.19,185.11,20.0]
[1722272299741,5.3999,185.19,185.09,25.60386496]
[1722272300226,5.4002,185.18,185.09,25.60386496]
[1722272300423,5.4004,185.17,185.09,25.60386496]
[1722272300625,25.26,185.19,185.09,25.60386496]
[1722272301230,5.4004,185.17,185.09,25.60386496]
[1722272301430,1.35044254,185.18,185.09,20.0]
[1722272301646,6.75084296,185.18,185.09,20.0]
[1722272302025,1.3504433,185.18,185.11,20.0]
[1722272302223,1.35044147,185.17,185.09,40.0]
[1722272302430,5.4003,185.18,185.09,20.0]
[1722272302739,16.4005,185.18,185.09,20.0]
[1722272303040,17.7509512,185.18,185.07,52.19982083]
[1722272303235,1.35047095,185.17,185.07,52.36982083]
[1722272303442,46.35047095,185.17,185.07,32.36982083]
[1722272303854,51.75087095,185.17,185.07,25.60332083]
[1722272305427,5.4008,185.16,185.07,5.60332083]
[1722272305629,6.75184796,185.15,185.08,20.7694388]
[1722272305930,30.6607,185.16,185.08,20.7694388]
[1722272306135,1.35067629,185.15,185.08,20.7694388]
[1722272306534,1.35064906,185.14,185.08,20.7694388]
[1722272306949,1.35067662,185.15,185.08,20.7694388]
[1722272307135,25.26,185.16,185.08,20.7694388]
[1722272307533,16.4005,185.18,185.08,20.7694388]
[1722272307749,16.4005,185.18,185.1,20.0]
[1722272307952,16.4005,185.18,185.08,20.7694388]
[1722272308161,5.4007,185.16,185.08,20.7694388]
[1722272308459,1.35067728,185.15,185.08,20.7694388]
[1722272308635,5.4007,185.16,185.08,20.7694388]
[1722272309040,45.0,185.17,185.08,40.7694388]
[1722272309468,21.8009,185.18,185.1,20.0]
[1722272309759,5.4005,185.17,185.1,20.0]
[1722272310253,5.4008,185.16,185.1,20.0]
[1722272310965,5.4004,185.17,185.1,20.0]
[1722272311660,5.4008,185.16,185.1,20.0]
[1722272311836,5.4011,185.15,185.1,20.0]
[1722272313059,5.4011,185.15,185.08,20.7694388]
[1722272313761,6.75169897,185.15,185.08,20.7694388]
[1722272314459,5.4014,185.14,185.08,0.7694388]
[1722272314639,5.4016,185.13,185.08,0.7694388]
[1722272314838,5.4013,185.14,185.08,0.7694388]
[1722272315048,5.401,185.15,185.08,0.7694388]
[1722272315245,25.26,185.16,185.08,0.7694388]
[1722272315435,5.4016,185.13,185.08,0.7694388]
[1722272316553,5.4013,185.14,185.08,0.7694388]
[1722272316755,5.4016,185.13,185.08,0.7694388]
[1722272316957,50.4016,185.13,185.08,0.7694388]
[1722272317146,5.4016,185.13,185.08,0.7694388]
[1722272317333,51.75203086,185.15,185.08,0.7694388]
[1722272317536,50.4013,185.15,185.08,0.7694388]
[1722272317856,45.0,185.15,185.08,0.7694388]
[1722272318240,50.401,185.15,185.08,0.7694388]
[1722272318444,5.4013,185.14,185.08,0.7694388]
[1722272318769,5.4016,185.13,185.08,0.7694388]
[1722272318939,5.4013,185.14,185.08,0.7694388]
[1722272319138,6.75212217,185.14,185.08,0.7694388]
[1722272319461,5.4013,185.14,185.08,0.7694388]
[1722272319840,5.4016,185.13,185.08,0.7694388]
[1722272320343,6.75240587,185.13,185.08,0.7694388]
[1722272320670,5.4013,185.14,185.08,0.7694388]
[1722272320837,45.0,185.13,185.08,0.7694388]
[1722272321046,30.6609,185.16,185.08,0.7694388]
[1722272321351,45.0,185.15,185.08,0.7694388]
[1722272321739,1.35072832,185.14,185.08,0.7694388]
[1722272321956,5.4013,185.14,185.08,0.7694388]
[1722272322162,45.0,185.13,185.08,0.7694388]
[1722272322546,46.35080269,185.13,185.08,0.7694388]
[1722272323046,45.0,185.13,185.08,0.7694388]
[1722272323764,17.75133251,185.18,185.08,0.7694388]
[1722272324067,25.26,185.16,185.08,0.7694388]
[1722272324252,46.35078564,185.15,185.08,0.7694388]
[1722272324448,51.75178564,185.15,185.08,0.7694388]
[1722272324859,5.4016,185.13,185.08,0.7694388]
[1722272325159,50.4011,185.15,185.08,0.7694388]
[1722272325664,30.6608,185.16,185.08,0.7694388]
[1722272325862,5.401,185.15,185.08,0.7694388]
[1722272326057,6.75196145,185.14,185.08,0.7694388]
[1722272326468,25.26,185.16,185.08,0.7694388]
[1722272326971,5.401,185.15,185.08,0.7694388]
[1722272327158,12.63,185.12,185.08,0.7694388]
[1722272327361,12.63,185.11,185.08,0.7694388]
[1722272327760,6.75196112,185.14,185.08,0.7694388]
[1722272327959,12.63,185.11,185.08,0.7694388]
[1722272329082,12.63,185.1,185.08,0.7694388]
[1722272329283,12.63,185.09,185.08,0.7694388]
[1722272329949,12.63,185.1,185.08,0.7694388]
[1722272330983,12.63,185.09,185.08,0.7694388]
[1722272332864,1.35089963,185.1,185.08,0.7694388]
[1722272333178,5.4022,185.11,185.08,0.7694388]
[1722272333358,5.4019,185.12,185.08,0.7694388]
[1722272333754,1.35089908,185.11,185.08,0.7694388]
[1722272334172,5.4019,185.12,185.08,0.7694388]
[1722272334369,1.35089685,185.12,185.08,0.7694388]
[1722272334559,17.09519878,185.16,185.08,0.7694388]
[1722272334766,12.63,185.1,185.08,0.7694388]
[1722272334972,5.401,185.15,185.08,0.7694388]
[1722272335180,12.63,185.11,185.08,20.7694388]
[1722272335355,12.63,185.11,185.08,0.7694388]
[1722272335678,12.63,185.1,185.08,0.7694388]
[1722272335976,5.4013,185.14,185.08,0.7694388]
[1722272336155,21.1451,185.16,185.09,20.0]
[1722272336353,12.63,185.14,185.09,20.0]
[1722272336562,21.5142,185.22,185.11,20.0]
[1722272336761,5.3993,185.21,185.13,20.0]
[1722272337106,12.63,185.16,185.11,20.0]
[1722272338774,12.63,185.15,185.1,6.2152]
[1722272339259,5.4001,185.18,185.1,6.2152]
[1722272339458,26.61043941,185.21,185.1,6.2152]
[1722272339655,5.3998,185.19,185.1,26.2152]
[1722272340062,50.3995,185.2,185.12,20.0]
[1722272340261,6.74981569,185.2,185.12,20.0]
[1722272340463,25.26,185.18,185.1,6.2152]
[1722272340683,25.26,185.18,185.08,20.7694388]
[1722272340684,45.0,185.17,185.08,20.7694388]
[1722272340867,46.35055975,185.17,185.08,20.7694388]
[1722272341061,5.4007,185.16,185.08,20.7694388]
[1722272341257,6.75166174,185.15,185.08,20.7694388]
[1722272341669,26.61066174,185.15,185.08,20.7694388]
[1722272341872,5.4013,185.14,185.08,20.7694388]
[1722272342077,6.75203607,185.14,185.08,20.7694388]
[1722272342388,6.75203597,185.14,185.08,20.7694388]
[1722272343309,5.4013,185.14,185.08,20.7694388]
[1722272344293,30.661,185.15,185.08,20.7694388]
[1722272344965,26.61073065,185.15,185.08,20.7694388]
[1722272345162,5.401,185.16,185.08,20.7694388]
[1722272345803,1.35060778,185.16,185.08,20.7694388]
[1722272346088,46.35065446,185.17,185.08,20.7694388]
[1722272346302,5.4013,185.14,185.08,20.7694388]
[1722272346796,5.4016,185.13,185.08,20.7694388]
[1722272348782,1.35073638,185.12,185.08,0.7694388]
[1722272349414,26.61073638,185.12,185.08,0.7694388]
[1722272350111,5.4025,185.1,185.08,0.7694388]
[1722272350313,5.4022,185.11,185.08,0.7694388]
[1722272350481,1.35103389,185.1,185.08,0.7694388]
[1722272350688,6.75363389,185.1,185.08,0.7694388]
[1722272351095,1.35103389,185.1,185.08,0.7694388]
[1722272351295,6.75353389,185.1,185.08,0.7694388]
[1722272351795,5.4025,185.1,185.08,0.7694388]
[1722272352289,5.4022,185.11,185.08,0.7694388]
[1722272352514,1.35103176,185.1,185.08,0.7694388]
[1722272352888,5.4022,185.11,185.08,0.7694388]
[1722272353319,30.6619,185.12,185.08,0.7694388]
[1722272353496,1.35093047,185.11,185.08,0.7694388]
[1722272353820,32.01274653,185.12,185.08,0.7694388]
[1722272354116,5.4022,185.11,185.08,0.7694388]
[1722272354416,25.26,185.12,185.08,0.7694388]
[1722272354600,6.75323676,185.11,185.08,0.7694388]
[1722272355496,30.6619,185.12,185.08,0.7694388]
[1722272355903,32.01282187,185.12,185.08,0.7694388]
[1722272356195,5.4023,185.11,185.08,0.7694388]
[1722272356597,5.4026,185.1,185.08,0.7694388]
[1722272356791,25.26,185.12,185.08,0.7694388]
[1722272356990,26.61092291,185.12,185.08,0.7694388]
[1722272357217,45.0,185.11,185.08,0.7694388]
[1722272357427,1.35098389,185.1,185.08,0.7694388]
[1722272357918,5.4027,185.09,185.08,0.7694388]
[1722272358121,6.75338389,185.1,185.08,0.7694388]
[1722272359121,16.0195,185.14,185.08,0.7694388]
[1722272359295,12.64,185.09,185.08,0.7694388]
[1722272359616,22.77188136,185.14,185.08,0.7694388]
[1722272359617,12.64,185.1,185.08,0.7694388]
[1722272362614,12.4823,185.1,185.08,0.7694388]
[1722272363811,12.64,185.09,185.08,0.7694388]
[1722272368624,1.35098584,185.16,185.08,0.7694388]
[1722272368835,12.64,185.09,185.08,0.7694388]
[1722272380025,6.75291386,185.12,185.08,0.7694388]
[1722272380219,0.17,185.15,185.08,0.7694388]
[1722272380419,12.64,185.11,185.08,0.7694388]
[1722272381046,12.64,185.09,185.08,0.7694388]
[1722272383422,1.35073929,185.13,185.08,0.7694388]
[1722272383631,12.64,185.09,185.08,0.7694388]
[1722272383938,12.64,185.1,185.08,0.7694388]
[1722272384441,12.64,185.11,185.08,0.7694388]
[1722272384960,12.64,185.09,185.08,0.7694388]
[1722272387852,58.99096735,185.09,185.08,0.7694388]
[1722272388148,12.64,185.09,185.08,0.7694388]
[1722272388537,57.64,185.09,185.08,0.7694388]
[1722272388949,12.64,185.09,185.08,0.7694388]
[1722272392160,5.4021,185.11,185.08,0.7694388]
[1722272392368,12.64,185.09,185.08,0.7694388]
[1722272392557,1.35089194,185.12,185.08,0.7694388]
[1722272392763,12.64,185.09,185.08,0.7694388]
[1722272395541,17.47301063,185.18,185.08,0.7694388]
[1722272395542,12.64,185.1,185.08,0.7694388]
[1722272395955,12.64,185.11,185.08,0.7694388]
[1722272396560,12.64,185.1,185.08,0.7694388]
[1722272396743,12.64,185.09,185.08,0.7694388]
[1722272398164,12.64,185.1,185.08,0.7694388]
[1722272398474,5.4026,185.1,185.08,0.7694388]
[1722272398644,12.64,185.09,185.08,0.7694388]
[1722272399748,12.64,185.1,185.08,0.7694388]
[1722272400140,12.64,185.12,185.08,0.7694388]
[1722272400342,15.3536,185.18,185.08,27.0430388]
[1722272400660,12.64,185.12,185.08,7.0430388]
[1722272400867,12.64,185.09,185.08,0.7694388]
[1722272401071,18.0427,185.09,185.08,0.7694388]
[1722272401256,6.7538754,185.09,185.08,0.7694388]
[1722272401443,19.39399625,185.09,185.08,0.7694388]
[1722272401871,5.4036,185.07,184.99,5.5976339]
[1722272402057,12.64,185.0,184.99,5.5976339]
[1722272402380,12.64,185.0,184.96,6.5912]
[1722272402577,15.3166,185.03,184.96,6.5912]
[1722272402578,12.64,184.97,184.96,6.5912]
[1722272402871,12.64,184.97,184.92,26.1107]
[1722272403075,12.64,184.96,184.92,6.1107]
[1722272403245,12.64,184.96,184.95,5.4068]
[1722272404174,12.64,184.96,184.93,5.4072]
[1722272404372,5.4054,185.0,184.94,5.4071]
[1722272404555,12.64,184.95,184.94,5.4071]
[1722272406767,5.4051,185.01,184.92,6.1107]
[1722272406956,16.66847483,185.03,184.92,6.1107]
[1722272406957,12.64,184.97,184.92,6.1107]
[1722272407344,12.64,184.96,184.92,6.1107]
[1722272408075,12.64,184.95,184.92,6.1107]
[1722272408462,1.3519177,184.94,184.92,6.1107]
[1722272408849,5.4053,185.01,184.92,6.1107]
[1722272409051,12.64,184.95,184.92,6.1107]
[1722272409272,12.64,184.93,184.89,6.3700322]
[1722272409448,12.64,184.91,184.89,0.7694388]
[1722272409652,12.64,184.9,184.89,0.7694388]
[1722272411480,12.64,184.91,184.9,5.4081]
[1722272412059,57.64,184.91,184.89,0.7694388]
[1722272412383,57.64,184.91,184.79,20.0]
[1722272412384,6.0287,184.88,184.74,20.0]
[1722272412562,17.299964,184.87,184.75,2.18327046]
[1722272412754,12.64,184.76,184.7,0.7694388]
[1722272413076,13.5241,184.86,184.7,0.7694388]
[1722272413077,1.35325391,184.85,184.7,0.7694388]
[1722272413280,25.38,184.78,184.7,0.7694388]
[1722272413480,26.73356715,184.78,184.7,0.7694388]
[1722272413656,1.35356715,184.78,184.7,0.7694388]
[1722272414561,25.37,184.79,184.71,5.4138]
[1722272414764,25.37,184.79,184.7,0.7694388]
[1722272415065,45.0,184.85,184.7,0.7694388]
[1722272415066,25.37,184.71,184.7,0.7694388]
[1722272415265,25.37,184.73,184.7,0.7694388]
[1722272415580,11.8127,184.78,184.7,0.7694388]
[1722272415896,25.37,184.73,184.7,0.7694388]
[1722272416186,0.19528627,184.73,184.7,0.7694388]
[1722272418190,0.19528627,184.73,184.7,20.7694388]
[1722272418475,0.19528627,184.73,184.72,5.4135]
[1722272418675,25.37,184.95,184.72,5.4135]
[1722272418676,16.5992,184.87,184.79,5.4113]
[1722272418882,16.5992,184.87,184.8,45.0]
[1722272419055,22.0086,184.87,184.8,45.0]
[1722272419259,5.4107,184.82,184.8,45.0]
[1722272419472,5.4122,184.77,184.71,6.597]
[1722272419679,28.53,184.83,184.74,5.4128]
[1722272419965,28.53,184.83,184.73,5.413]
[1722272420162,28.53,184.83,184.72,5.4135]
[1722272420373,28.53,184.83,184.73,5.413]
[1722272420587,16.5992,184.87,184.71,26.597]
[1722272420588,45.1292,184.87,184.75,20.0]
[1722272420768,16.5992,184.87,184.78,5.4115]
[1722272421092,22.0084,184.87,184.79,45.0]
[1722272421264,16.5992,184.87,184.79,45.0]
[1722272421581,16.5992,184.87,184.78,50.4116]
[1722272422359,299.9475,184.95,184.78,50.4116]
[1722272422360,257.9,184.95,184.86,5.4094]
[1722272422557,21.4375,184.98,184.87,45.0]
[1722272422983,21.4375,184.98,184.86,45.0]
[1722272423185,15.2196,184.98,184.86,45.0]
[1722272423370,5.4064,184.97,184.88,5.4086]
[1722272423569,5.4064,184.97,184.89,45.0]
[1722272423767,15.2196,184.98,184.89,45.0]
[1722272424063,22.9092,185.03,184.9,5.408]
[1722272424267,5.4055,185.0,184.91,50.4078]
[1722272424673,5.4048,185.02,184.91,65.0]
[1722272424892,16.2884,185.03,184.91,85.0]
[1722272425177,16.2884,185.03,184.97,5.4061]
[1722272425382,5.4054,185.0,184.98,45.0]
[1722272425565,16.2884,185.03,184.98,45.0]
[1722272425962,28.53,185.08,184.98,45.0]
[1722272426162,5.4034,185.07,184.98,45.0]
[1722272426388,15.1922,185.09,184.98,45.0]
[1722272426566,5.4038,185.06,184.98,45.0]
[1722272426891,5.4032,185.08,184.98,45.0]
[1722272427092,5.4035,185.07,184.98,45.0]
[1722272427265,20.5951,185.09,184.98,45.0]
[1722272427597,5.4035,185.07,184.98,45.0]
[1722272427969,5.4038,185.06,184.98,45.0]
[1722272428677,5.4034,185.07,184.98,45.0]
[1722272428881,20.5952,185.09,184.98,45.0]
[1722272429182,15.1922,185.09,184.99,20.0]
[1722272429361,20.595,185.09,185.0,45.0]
[1722272429562,15.1922,185.09,185.0,45.0]
[1722272429764,5.4032,185.08,185.0,45.0]
[1722272430163,15.1922,185.09,185.0,45.0]
[1722272430374,5.4029,185.09,185.0,45.0]
[1722272430988,28.53,185.13,185.01,20.0]
[1722272431192,28.53,185.13,185.02,45.0]
[1722272431361,5.403,185.09,185.02,45.0]
[1722272431769,28.53,185.13,185.02,45.0]
[1722272431770,5.4024,185.11,185.02,45.0]
[1722272432081,15.1807,185.15,185.06,6.5502]
[1722272432265,2.1539983,185.21,185.08,20.0]
[1722272432466,58.1706,185.22,185.09,45.0]
[1722272432666,5.401,185.15,185.09,45.0]
[1722272432961,5.4006,185.17,185.09,45.0]
[1722272433165,5.3997,185.2,185.11,20.0]
[1722272433380,5.4002,185.18,185.12,45.0]
[1722272433683,44.673,185.22,185.12,45.0]
[1722272434278,33.9292,185.22,185.13,20.0]
[1722272434470,5.3996,185.2,185.14,45.0]
[1722272435005,28.53,185.22,185.14,45.0]
[1722272435370,5.399,185.22,185.15,20.0]
[1722272435577,5.399,185.22,185.16,45.0]
[1722272436195,5.3985,185.24,185.16,45.0]
[1722272436502,5.3987,185.23,185.16,45.0]
[1722272436681,28.53,185.26,185.16,45.0]
[1722272436999,5.3989,185.22,185.16,45.0]
[1722272437374,5.3993,185.21,185.16,45.0]
[1722272437571,5.3989,185.23,185.16,45.0]
[1722272437803,5.399,185.22,185.16,45.0]
[1722272438304,28.53,185.26,185.16,45.0]
[1722272438798,5.399,185.22,185.16,45.0]
[1722272439093,5.399,185.22,185.17,20.0]
[1722272439295,28.53,185.26,185.18,45.0]
[1722272439787,0.17,185.25,185.18,45.0]
[1722272440096,28.53,185.26,185.18,45.0]
[1722272440097,5.3991,185.22,185.18,45.0]
[1722272440393,28.53,185.26,185.18,45.0]
[1722272440569,28.53,185.26,185.17,45.0]
[1722272441093,5.4022,185.11,185.07,20.0]
[1722272441401,28.53,185.18,185.06,6.5502]
[1722272441697,5.4022,185.11,185.06,6.5502]
[1722272441993,5.4025,185.1,185.06,6.5502]
[1722272442691,28.44,185.14,185.06,6.5502]
[1722272442875,5.4012,185.15,185.06,6.5502]
[1722272443070,21.1127,185.17,185.09,20.0]
[1722272443271,15.7122,185.17,185.07,20.0]
[1722272443590,15.7122,185.17,185.06,6.5502]
[1722272443777,28.44,185.22,185.07,20.0]
[1722272443987,28.44,185.22,185.09,20.0]
[1722272443988,5.4006,185.17,185.09,20.0]
[1722272444295,0.17,185.21,185.07,20.0]
[1722272444496,20.17,185.21,185.07,20.0]